{"text_format":"1","workbook":"xlsx","n_sheets":2,"sheets":["Bd","AUTOSCAN 2022"],"not_rendered":{"charts":1,"images":0,"macros":1,"external_links":0,"defined_names":3,"comments":0,"pivot_tables":0},"unopened":[],"bounds":{"document_bytes":16777216,"sheet_cells":100000,"rows_first":2000,"rows_last":500,"rows_between":2000,"halvings":0,"cell_chars":16384,"cell_head_chars":4096},"cells_cut":0,"cells_raw":0,"read":"whole","date_system":"1900"}

{"sheet":"Bd","index":0,"n_rows":366,"n_cols":26,"rows_kept":366,"cut":false,"hidden":false,"merged":[]}
["Date","V. Bac","V. N","DEP","AMO","N. Mélan",null,null,"V. Bac","V. N","DEP","AMO","N. Mélan",null,null,"V. Bac","V. N","DEP","AMO","N. Mélan","N. automate"]
["2022-01-01","P","P","P",null,null,null,null,"P","P","P",null,null,null,null,null,null,null,null,null,null,null,{"$f":"MONTH(A2)","v":1},"2021-01-01","ANU",2020]
["2022-01-02","P","P","P",null,null,null,null,"P","P","P",null,null,null,null,null,null,null,null,null,null,null,{"$f":"MONTH(A3)","v":1},"2021-02-01","NR",2021]
["2022-01-03","P","P","P",null,null,null,null,"P","P","P",null,null,null,null,null,null,null,null,null,null,null,1,"2021-03-01","P",2022]
["2022-01-04","P","P","P",null,null,null,null,"P","P","P",null,null,null,null,null,null,null,null,null,null,null,1,"2021-04-01","R",2023]
["2022-01-05","P","P","P",null,null,null,null,"P","P","P",null,null,null,null,null,null,null,null,null,null,null,1,"2021-05-01","RE",2024]
["2022-01-06","P","P","P",null,null,null,null,"P","P","P",null,null,null,null,null,null,null,null,null,null,null,1,"2021-06-01",null,2025]
["2022-01-07","P","P","P",null,null,null,null,"P","P","P",null,null,null,null,null,null,null,null,null,null,null,1,"2021-07-01",null,2026]
["2022-01-08","P","P","P",null,null,null,null,"P","P","P",null,null,null,null,null,null,null,null,null,null,null,1,"2021-08-01",null,2027]
["2022-01-09","P","P","P",null,null,null,null,"P","P","P",null,null,null,null,null,null,null,null,null,null,null,1,"2021-09-01",null,2028]
["2022-01-10","P","P","P",null,null,null,null,"P","P","P",null,null,null,null,null,null,null,null,null,null,null,1,"2021-10-01",null,2029]
["2022-01-11","P","P","P",null,null,null,null,"P","P","P",null,null,null,null,null,null,null,null,null,null,null,1,"2021-11-01",null,2030]
["2022-01-12","P","P","P",null,null,null,null,"P","P","P",null,null,null,null,null,null,null,null,null,null,null,1,"2021-12-01",null,2031]
["2022-01-13","P","P","P",null,null,null,null,"P","P","P",null,null,null,null,null,null,null,null,null,null,null,1]
["2022-01-14","P","P","P",null,null,null,null,"P","P","P",null,null,null,null,null,null,null,null,null,null,null,1]
["2022-01-15","P","P","P","P","P",null,null,"P","P","P","P","P",null,null,null,null,null,null,null,null,null,1]
["2022-01-16","P","P","P",null,null,null,null,"P","P","P",null,null,null,null,null,null,null,null,null,null,null,1]
["2022-01-17","P","P","P",null,null,null,null,"P","P","P",null,null,null,null,null,null,null,null,null,null,null,1]
["2022-01-18","P","P","P",null,null,null,null,"P","P","P",null,null,null,null,null,null,null,null,null,null,null,1]
["2022-01-19","P","P","P",null,null,null,null,"P","P","P",null,null,null,null,null,null,null,null,null,null,null,1]
["2022-01-20","P","P","P",null,null,null,null,"P","P","P",null,null,null,null,null,null,null,null,null,null,null,1]
["2022-01-21","P","P","P",null,null,null,null,"P","P","P",null,null,null,null,null,null,null,null,null,null,null,1]
["2022-01-22","P","P","P",null,null,null,null,"P","P","P",null,null,null,null,null,null,null,null,null,null,null,1]
["2022-01-23","P","P","P",null,null,null,null,"P","P","P",null,null,null,null,null,null,null,null,null,null,null,1]
["2022-01-24","P","P","P",null,null,null,null,"P","P","P",null,null,null,null,null,null,null,null,null,null,null,1]
["2022-01-25","P","P","P",null,null,null,null,"P","P","P",null,null,null,null,null,null,null,null,null,null,null,1]
["2022-01-26","P","P","P",null,null,null,null,"P","P","P",null,null,null,null,null,null,null,null,null,null,null,1]
["2022-01-27","P","P","P",null,null,null,null,"P","P","P",null,null,null,null,null,null,null,null,null,null,null,1]
["2022-01-28","P","P","P",null,null,null,null,"P","P","P",null,null,null,null,null,null,null,null,null,null,null,1]
["2022-01-29","P","P","P",null,null,null,null,"P","P","P",null,null,null,null,null,null,null,null,null,null,null,1]
["2022-01-30","P","P","P",null,null,null,null,"P","P","P",null,null,null,null,null,null,null,null,null,null,null,1]
["2022-01-31","ANU","ANU","ANU",null,null,null,null,"P","P","P",null,null,null,null,null,null,null,null,null,null,null,1]
["2022-02-01","ANU","ANU","ANU",null,null,null,null,"P","P","P",null,null,null,null,null,null,null,null,null,null,null,2]
["2022-02-02","ANU","ANU","ANU",null,null,null,null,"P","P","P",null,null,null,null,null,null,null,null,null,null,null,2]
["2022-02-03","R","R","R",null,null,null,null,"P","P","P",null,null,null,null,null,null,null,null,null,null,null,2]
["2022-02-04","R","R","R",null,null,null,null,"P","P","P",null,null,null,null,null,null,null,null,null,null,null,2]
["2022-02-05","ANU","ANU","ANU",null,null,null,null,"P","P","P",null,null,null,null,null,null,null,null,null,null,null,2]
["2022-02-06","P","P","P",null,null,null,null,"P","P","P",null,null,null,null,null,null,null,null,null,null,null,2]
["2022-02-07","P","P","P",null,null,null,null,"P","P","P",null,null,null,null,null,null,null,null,null,null,null,2]
["2022-02-08","P","P","P",null,null,null,null,"P","P","P",null,null,null,null,null,null,null,null,null,null,null,2]
["2022-02-09","P","P","P",null,null,null,null,"P","P","P",null,null,null,null,null,null,null,null,null,null,null,2]
["2022-02-10","P","P","P",null,null,null,null,"P","P","P",null,null,null,null,null,null,null,null,null,null,null,2]
["2022-02-11","P","P","P",null,null,null,null,"P","P","P",null,null,null,null,null,null,null,null,null,null,null,2]
["2022-02-12","P","P","P",null,null,null,null,"P","P","P",null,null,null,null,null,null,null,null,null,null,null,2]
["2022-02-13","P","P","P",null,null,null,null,"P","P","P",null,null,null,null,null,null,null,null,null,null,null,2]
["2022-02-14","P","P","P",null,null,null,null,"P","P","P",null,null,null,null,null,null,null,null,null,null,null,2]
["2022-02-15","P","P","P",null,null,null,null,"P","P","P",null,null,null,null,null,null,null,null,null,null,null,2]
["2022-02-16","P","P","P",null,null,null,null,"P","P","P",null,null,null,null,null,null,null,null,null,null,null,2]
["2022-02-17","P","P","P",null,null,null,null,"P","P","P",null,null,null,null,null,null,null,null,null,null,null,2]
["2022-02-18","P","P","P",null,null,null,null,"P","P","P",null,null,null,null,null,null,null,null,null,null,null,2]
["2022-02-19","P","P","P","P","P",null,null,"P","P","P","P","P",null,null,null,null,null,null,null,null,null,2]
["2022-02-20","P","P","P",null,null,null,null,"P","P","P",null,null,null,null,null,null,null,null,null,null,null,2]
["2022-02-21","P","P","P",null,null,null,null,"P","P","P",null,null,null,null,null,null,null,null,null,null,null,2]
["2022-02-22","P","P","P",null,null,null,null,"P","P","P",null,null,null,null,null,null,null,null,null,null,null,2]
["2022-02-23","P","P","P",null,null,null,null,"P","P","P",null,null,null,null,null,null,null,null,null,null,null,2]
["2022-02-24","P","P","P",null,null,null,null,"P","P","P",null,null,null,null,null,null,null,null,null,null,null,2]
["2022-02-25","P","P","P",null,null,null,null,"P","P","P",null,null,null,null,null,null,null,null,null,null,null,2]
["2022-02-26","P","P","P",null,null,null,null,"P","P","P",null,null,null,null,null,null,null,null,null,null,null,2]
["2022-02-27","P","P","P",null,null,null,null,"P","P","P",null,null,null,null,null,null,null,null,null,null,null,2]
["2022-02-28","P","P","P",null,null,null,null,"P","P","P",null,null,null,null,null,null,null,null,null,null,null,2]
["2022-03-01","P","P","P",null,null,null,null,"P","P","P",null,null,null,null,null,null,null,null,null,null,null,3]
["2022-03-02","P","P","P",null,null,null,null,"P","P","P",null,null,null,null,null,null,null,null,null,null,null,3]
["2022-03-03","P","P","P",null,null,null,null,"P","P","P",null,null,null,null,null,null,null,null,null,null,null,3]
["2022-03-04","P","P","P",null,null,null,null,"P","P","P",null,null,null,null,null,null,null,null,null,null,null,3]
["2022-03-05","P","P","P",null,null,null,null,"P","P","P",null,null,null,null,null,null,null,null,null,null,null,3]
["2022-03-06","P","P","P",null,null,null,null,"P","P","P",null,null,null,null,null,null,null,null,null,null,null,3]
["2022-03-07","P","P","P",null,null,null,null,"P","P","P",null,null,null,null,null,null,null,null,null,null,null,{"$f":"MONTH(A67)","v":3}]
["2022-03-08","P","P","P",null,null,null,null,"P","P","P",null,null,null,null,null,null,null,null,null,null,null,3]
["2022-03-09","P","P","P",null,null,null,null,"P","P","P",null,null,null,null,null,null,null,null,null,null,null,3]
["2022-03-10","P","P","P",null,null,null,null,"P","P","P",null,null,null,null,null,null,null,null,null,null,null,3]
["2022-03-11","P","P","P",null,null,null,null,"P","P","P",null,null,null,null,null,null,null,null,null,null,null,3]
["2022-03-12","P","P","P","P","P",null,null,"P","P","P","P","P",null,null,null,null,null,null,null,null,null,3]
["2022-03-13","P","P","P",null,null,null,null,"P","P","P",null,null,null,null,null,null,null,null,null,null,null,3]
["2022-03-14","P","P","P",null,null,null,null,"P","P","P",null,null,null,null,null,null,null,null,null,null,null,3]
["2022-03-15","P","P","P",null,null,null,null,"P","P","P",null,null,null,null,null,null,null,null,null,null,null,3]
["2022-03-16","P","P","P",null,null,null,null,"P","P","P",null,null,null,null,null,null,null,null,null,null,null,3]
["2022-03-17","P","P","P",null,null,null,null,"P","P","P",null,null,null,null,null,null,null,null,null,null,null,3]
["2022-03-18","P","P","P",null,null,null,null,"P","P","P",null,null,null,null,null,null,null,null,null,null,null,3]
["2022-03-19","P","P","P",null,null,null,null,"P","P","P",null,null,null,null,null,null,null,null,null,null,null,3]
["2022-03-20","P","P","P",null,null,null,null,"P","P","P",null,null,null,null,null,null,null,null,null,null,null,3]
["2022-03-21","P","P","P",null,null,null,null,"P","P","P",null,null,null,null,null,null,null,null,null,null,null,3]
["2022-03-22","P","P","P",null,null,null,null,"P","P","P",null,null,null,null,null,null,null,null,null,null,null,3]
["2022-03-23","P","P","P",null,null,null,null,"P","P","P",null,null,null,null,null,null,null,null,null,null,null,3]
["2022-03-24","P","P","P",null,null,null,null,"P","P","P",null,null,null,null,null,null,null,null,null,null,null,3]
["2022-03-25","P","P","P",null,null,null,null,"P","P","P",null,null,null,null,null,null,null,null,null,null,null,3]
["2022-03-26","P","P","P",null,null,null,null,"P","P","P",null,null,null,null,null,null,null,null,null,null,null,3]
["2022-03-27","P","P","P",null,null,null,null,"P","P","P",null,null,null,null,null,null,null,null,null,null,null,3]
["2022-03-28","P","P","P",null,null,null,null,"P","P","P",null,null,null,null,null,null,null,null,null,null,null,3]
["2022-03-29","P","P","P",null,null,null,null,"P","P","P",null,null,null,null,null,null,null,null,null,null,null,3]
["2022-03-30","P","P","P",null,null,null,null,"P","P","P",null,null,null,null,null,null,null,null,null,null,null,3]
["2022-03-31","P","P","P",null,null,null,null,"P","P","P",null,null,null,null,null,null,null,null,null,null,null,3]
["2022-04-01","P","P","P",null,null,null,null,"P","P","P",null,null,null,null,null,null,null,null,null,null,null,4]
["2022-04-02","P","P","P",null,null,null,null,"P","P","P",null,null,null,null,null,null,null,null,null,null,null,4]
["2022-04-03","P","P","P",null,null,null,null,"P","P","P",null,null,null,null,null,null,null,null,null,null,null,4]
["2022-04-04","P","P","P",null,null,null,null,"P","P","P",null,null,null,null,null,null,null,null,null,null,null,4]
["2022-04-05","P","P","P",null,null,null,null,"P","P","P",null,null,null,null,null,null,null,null,null,null,null,4]
["2022-04-06","P","P","P",null,null,null,null,"P","P","P",null,null,null,null,null,null,null,null,null,null,null,4]
["2022-04-07","P","P","P",null,null,null,null,"P","P","P",null,null,null,null,null,null,null,null,null,null,null,4]
["2022-04-08","P","P","P",null,null,null,null,"P","P","P",null,null,null,null,null,null,null,null,null,null,null,4]
["2022-04-09","P","P","P","P","P",null,null,"P","P","P","P","P",null,null,null,null,null,null,null,null,null,4]
["2022-04-10","P","P","P",null,null,null,null,"P","P","P",null,null,null,null,null,null,null,null,null,null,null,4]
["2022-04-11","P","P","P",null,null,null,null,"P","P","P",null,null,null,null,null,null,null,null,null,null,null,4]
["2022-04-12","P","P","P",null,null,null,null,"P","P","P",null,null,null,null,null,null,null,null,null,null,null,4]
["2022-04-13","P","P","P",null,null,null,null,"P","P","P",null,null,null,null,null,null,null,null,null,null,null,4]
["2022-04-14","P","P","P",null,null,null,null,"P","P","P",null,null,null,null,null,null,null,null,null,null,null,4]
["2022-04-15","P","P","P",null,null,null,null,"P","P","P",null,null,null,null,null,null,null,null,null,null,null,4]
["2022-04-16","P","P","P",null,null,null,null,"P","P","P",null,null,null,null,null,null,null,null,null,null,null,4]
["2022-04-17","P","P","P",null,null,null,null,"P","P","P",null,null,null,null,null,null,null,null,null,null,null,4]
["2022-04-18","P","P","P",null,null,null,null,"P","P","P",null,null,null,null,null,null,null,null,null,null,null,4]
["2022-04-19","P","P","P",null,null,null,null,"P","P","P",null,null,null,null,null,null,null,null,null,null,null,4]
["2022-04-20","P","P","P",null,null,null,null,"P","P","P",null,null,null,null,null,null,null,null,null,null,null,4]
["2022-04-21","P","P","P",null,null,null,null,"P","P","P",null,null,null,null,null,null,null,null,null,null,null,4]
["2022-04-22","P","P","P",null,null,null,null,"P","P","P",null,null,null,null,null,null,null,null,null,null,null,4]
["2022-04-23","P","P","P",null,null,null,null,"P","P","P",null,null,null,null,null,null,null,null,null,null,null,4]
["2022-04-24","P","P","P",null,null,null,null,"P","P","P",null,null,null,null,null,null,null,null,null,null,null,4]
["2022-04-25","P","P","P",null,null,null,null,"P","P","P",null,null,null,null,null,null,null,null,null,null,null,4]
["2022-04-26","P","P","P",null,null,null,null,"P","P","P",null,null,null,null,null,null,null,null,null,null,null,4]
["2022-04-27","P","P","P",null,null,null,null,"P","P","P",null,null,null,null,null,null,null,null,null,null,null,4]
["2022-04-28","P","P","P",null,null,null,null,"P","P","P",null,null,null,null,null,null,null,null,null,null,null,4]
["2022-04-29","P","P","P",null,null,null,null,"P","P","P",null,null,null,null,null,null,null,null,null,null,null,4]
["2022-04-30","P","P","P",null,null,null,null,"P","P","P",null,null,null,null,null,null,null,null,null,null,null,4]
["2022-05-01","P","P","P",null,null,null,null,"P","P","P",null,null,null,null,null,null,null,null,null,null,null,5]
["2022-05-02","P","P","P",null,null,null,null,"P","P","P",null,null,null,null,null,null,null,null,null,null,null,5]
["2022-05-03","P","P","P",null,null,null,null,"P","P","P",null,null,null,null,null,null,null,null,null,null,null,5]
["2022-05-04","P","P","P",null,null,null,null,"P","P","P",null,null,null,null,null,null,null,null,null,null,null,5]
["2022-05-05","P","P","P",null,null,null,null,"P","P","P",null,null,null,null,null,null,null,null,null,null,null,5]
["2022-05-06","P","P","P",null,null,null,null,"P","P","P",null,null,null,null,null,null,null,null,null,null,null,5]
["2022-05-07","P","P","P","P","P",null,null,"P","P","P","P","P",null,null,null,null,null,null,null,null,null,5]
["2022-05-08","P","P","P",null,null,null,null,"P","P","P",null,null,null,null,null,null,null,null,null,null,null,5]
["2022-05-09","P","P","P",null,null,null,null,"P","P","P",null,null,null,null,null,null,null,null,null,null,null,5]
["2022-05-10","P","P","P",null,null,null,null,"P","P","P",null,null,null,null,null,null,null,null,null,null,null,{"$f":"MONTH(A131)","v":5}]
["2022-05-11","P","P","P",null,null,null,null,"P","P","P",null,null,null,null,null,null,null,null,null,null,null,5]
["2022-05-12","P","P","P",null,null,null,null,"P","P","P",null,null,null,null,null,null,null,null,null,null,null,5]
["2022-05-13","P","P","P",null,null,null,null,"P","P","P",null,null,null,null,null,null,null,null,null,null,null,5]
["2022-05-14","P","P","P",null,null,null,null,"P","P","P",null,null,null,null,null,null,null,null,null,null,null,5]
["2022-05-15","P","P","P",null,null,null,null,"P","P","P",null,null,null,null,null,null,null,null,null,null,null,5]
["2022-05-16","P","P","P",null,null,null,null,"P","P","P",null,null,null,null,null,null,null,null,null,null,null,5]
["2022-05-17","P","P","P",null,null,null,null,"P","P","P",null,null,null,null,null,null,null,null,null,null,null,5]
["2022-05-18","P","P","P",null,null,null,null,"P","P","P",null,null,null,null,null,null,null,null,null,null,null,5]
["2022-05-19","P","P","P",null,null,null,null,"P","P","P",null,null,null,null,null,null,null,null,null,null,null,5]
["2022-05-20","P","P","P",null,null,null,null,"P","P","P",null,null,null,null,null,null,null,null,null,null,null,5]
["2022-05-21","P","P","P",null,null,null,null,"P","P","P",null,null,null,null,null,null,null,null,null,null,null,5]
["2022-05-22","P","P","P",null,null,null,null,"P","P","P",null,null,null,null,null,null,null,null,null,null,null,5]
["2022-05-23","P","P","P",null,null,null,null,"P","P","P",null,null,null,null,null,null,null,null,null,null,null,5]
["2022-05-24","P","P","P",null,null,null,null,"P","P","P",null,null,null,null,null,null,null,null,null,null,null,5]
["2022-05-25","P","P","P",null,null,null,null,"P","P","P",null,null,null,null,null,null,null,null,null,null,null,5]
["2022-05-26","P","P","P",null,null,null,null,"P","P","P",null,null,null,null,null,null,null,null,null,null,null,5]
["2022-05-27","P","P","P",null,null,null,null,"P","P","P",null,null,null,null,null,null,null,null,null,null,null,5]
["2022-05-28","P","P","P",null,null,null,null,"P","P","P",null,null,null,null,null,null,null,null,null,null,null,5]
["2022-05-29","P","P","P",null,null,null,null,"P","P","P",null,null,null,null,null,null,null,null,null,null,null,5]
["2022-05-30","P","P","P",null,null,null,null,"P","P","P",null,null,null,null,null,null,null,null,null,null,null,5]
["2022-05-31","P","P","P",null,null,null,null,"P","P","P",null,null,null,null,null,null,null,null,null,null,null,5]
["2022-06-01","P","P","P",null,null,null,null,"P","P","P",null,null,null,null,null,null,null,null,null,null,null,6]
["2022-06-02","P","P","P",null,null,null,null,"P","P","P",null,null,null,null,null,null,null,null,null,null,null,6]
["2022-06-03","P","P","P",null,null,null,null,"P","P","P",null,null,null,null,null,null,null,null,null,null,null,6]
["2022-06-04","P","P","P",null,null,null,null,"P","P","P",null,null,null,null,null,null,null,null,null,null,null,6]
["2022-06-05","P","P","P",null,null,null,null,"P","P","P",null,null,null,null,null,null,null,null,null,null,null,6]
["2022-06-06","P","P","P",null,null,null,null,"P","P","P",null,null,null,null,null,null,null,null,null,null,null,6]
["2022-06-07","P","P","P",null,null,null,null,"P","P","P",null,null,null,null,null,null,null,null,null,null,null,6]
["2022-06-08","P","P","P",null,null,null,null,"P","P","P",null,null,null,null,null,null,null,null,null,null,null,6]
["2022-06-09","P","P","P",null,null,null,null,"P","P","P",null,null,null,null,null,null,null,null,null,null,null,6]
["2022-06-10","P","P","P",null,null,null,null,"P","P","P",null,null,null,null,null,null,null,null,null,null,null,6]
["2022-06-11","P","P","P","P","P",null,null,"P","P","P","P","P",null,null,null,null,null,null,null,null,null,6]
["2022-06-12","P","P","P",null,null,null,null,"P","P","P",null,null,null,null,null,null,null,null,null,null,null,6]
["2022-06-13","P","P","P",null,null,null,null,"P","P","P",null,null,null,null,null,null,null,null,null,null,null,6]
["2022-06-14","P","P","P",null,null,null,null,"P","P","P",null,null,null,null,null,null,null,null,null,null,null,6]
["2022-06-15","P","P","P",null,null,null,null,"P","P","P",null,null,null,null,null,null,null,null,null,null,null,6]
["2022-06-16","P","P","P",null,null,null,null,"P","P","P",null,null,null,null,null,null,null,null,null,null,null,6]
["2022-06-17","P","P","P",null,null,null,null,"P","P","P",null,null,null,null,null,null,null,null,null,null,null,6]
["2022-06-18","P","P","P",null,null,null,null,"P","P","P",null,null,null,null,null,null,null,null,null,null,null,6]
["2022-06-19","P","P","P",null,null,null,null,"P","P","P",null,null,null,null,null,null,null,null,null,null,null,6]
["2022-06-20","P","P","P",null,null,null,null,"P","P","P",null,null,null,null,null,null,null,null,null,null,null,6]
["2022-06-21","P","P","P",null,null,null,null,"P","P","P",null,null,null,null,null,null,null,null,null,null,null,6]
["2022-06-22","P","P","P",null,null,null,null,"P","P","P",null,null,null,null,null,null,null,null,null,null,null,6]
["2022-06-23","P","P","P",null,null,null,null,"P","P","P",null,null,null,null,null,null,null,null,null,null,null,6]
["2022-06-24","P","P","P",null,null,null,null,"P","P","P",null,null,null,null,null,null,null,null,null,null,null,6]
["2022-06-25","P","P","P",null,null,null,null,"P","P","P",null,null,null,null,null,null,null,null,null,null,null,6]
["2022-06-26","P","P","P",null,null,null,null,"P","P","P",null,null,null,null,null,null,null,null,null,null,null,6]
["2022-06-27","P","P","P",null,null,null,null,"P","P","P",null,null,null,null,null,null,null,null,null,null,null,6]
["2022-06-28","P","P","P",null,null,null,null,"P","P","P",null,null,null,null,null,null,null,null,null,null,null,6]
["2022-06-29","P","P","P",null,null,null,null,"P","P","P",null,null,null,null,null,null,null,null,null,null,null,6]
["2022-06-30","P","P","P",null,null,null,null,"P","P","P",null,null,null,null,null,null,null,null,null,null,null,6]
["2022-07-01","P","P","P",null,null,null,null,"P","P","P",null,null,null,null,null,null,null,null,null,null,null,7]
["2022-07-02","P","P","P",null,null,null,null,"P","P","P",null,null,null,null,null,null,null,null,null,null,null,7]
["2022-07-03","P","P","P",null,null,null,null,"P","P","P",null,null,null,null,null,null,null,null,null,null,null,7]
["2022-07-04","P","P","P",null,null,null,null,"P","P","P",null,null,null,null,null,null,null,null,null,null,null,7]
["2022-07-05","P","P","P",null,null,null,null,"P","P","P",null,null,null,null,null,null,null,null,null,null,null,7]
["2022-07-06","P","P","P",null,null,null,null,"P","P","P",null,null,null,null,null,null,null,null,null,null,null,7]
["2022-07-07","P","P","P",null,null,null,null,"P","P","P",null,null,null,null,null,null,null,null,null,null,null,7]
["2022-07-08","P","P","P",null,null,null,null,"P","P","P",null,null,null,null,null,null,null,null,null,null,null,7]
["2022-07-09","P","P","P","P","P",null,null,"P","P","P","P","P",null,null,null,null,null,null,null,null,null,7]
["2022-07-10","P","P","P",null,null,null,null,"P","P","P",null,null,null,null,null,null,null,null,null,null,null,7]
["2022-07-11","P","P","P",null,null,null,null,"P","P","P",null,null,null,null,null,null,null,null,null,null,null,7]
["2022-07-12","P","P","P",null,null,null,null,"P","P","P",null,null,null,null,null,null,null,null,null,null,null,7]
["2022-07-13","P","P","P",null,null,null,null,"P","P","P",null,null,null,null,null,null,null,null,null,null,null,{"$f":"MONTH(A195)","v":7}]
["2022-07-14","P","P","P",null,null,null,null,"P","P","P",null,null,null,null,null,null,null,null,null,null,null,7]
["2022-07-15","P","P","P",null,null,null,null,"P","P","P",null,null,null,null,null,null,null,null,null,null,null,7]
["2022-07-16","P","P","P",null,null,null,null,"P","P","P",null,null,null,null,null,null,null,null,null,null,null,7]
["2022-07-17","P","P","P",null,null,null,null,"P","P","P",null,null,null,null,null,null,null,null,null,null,null,7]
["2022-07-18","P","P","P",null,null,null,null,"P","P","P",null,null,null,null,null,null,null,null,null,null,null,7]
["2022-07-19","P","P","P",null,null,null,null,"P","P","P",null,null,null,null,null,null,null,null,null,null,null,7]
["2022-07-20","P","P","P",null,null,null,null,"P","P","P",null,null,null,null,null,null,null,null,null,null,null,7]
["2022-07-21","P","P","P",null,null,null,null,"P","P","P",null,null,null,null,null,null,null,null,null,null,null,7]
["2022-07-22","P","P","P",null,null,null,null,"P","P","P",null,null,null,null,null,null,null,null,null,null,null,7]
["2022-07-23","P","P","P",null,null,null,null,"P","P","P",null,null,null,null,null,null,null,null,null,null,null,7]
["2022-07-24","P","P","P",null,null,null,null,"P","P","P",null,null,null,null,null,null,null,null,null,null,null,7]
["2022-07-25","P","P","P",null,null,null,null,"P","P","P",null,null,null,null,null,null,null,null,null,null,null,7]
["2022-07-26","P","P","P",null,null,null,null,"P","P","P",null,null,null,null,null,null,null,null,null,null,null,7]
["2022-07-27","P","P","P",null,null,null,null,"P","P","P",null,null,null,null,null,null,null,null,null,null,null,7]
["2022-07-28","P","P","P",null,null,null,null,"P","P","P",null,null,null,null,null,null,null,null,null,null,null,7]
["2022-07-29","P","P","P",null,null,null,null,"P","P","P",null,null,null,null,null,null,null,null,null,null,null,7]
["2022-07-30","P","P","P",null,null,null,null,"P","P","P",null,null,null,null,null,null,null,null,null,null,null,7]
["2022-07-31","P","P","P",null,null,null,null,"P","P","P",null,null,null,null,null,null,null,null,null,null,null,7]
["2022-08-01","P","P","P",null,null,null,null,"P","P","P",null,null,null,null,null,null,null,null,null,null,null,8]
["2022-08-02","P","P","P",null,null,null,null,"P","P","P",null,null,null,null,null,null,null,null,null,null,null,8]
["2022-08-03","P","P","P",null,null,null,null,"P","P","P",null,null,null,null,null,null,null,null,null,null,null,8]
["2022-08-04","P","P","P",null,null,null,null,"P","P","P",null,null,null,null,null,null,null,null,null,null,null,8]
["2022-08-05","P","P","P",null,null,null,null,"P","P","P",null,null,null,null,null,null,null,null,null,null,null,8]
["2022-08-06","P","P","P","P","P",null,null,"P","P","P","P","P",null,null,null,null,null,null,null,null,null,8]
["2022-08-07","P","P","P",null,null,null,null,"P","P","P",null,null,null,null,null,null,null,null,null,null,null,8]
["2022-08-08","P","P","P",null,null,null,null,"P","P","P",null,null,null,null,null,null,null,null,null,null,null,8]
["2022-08-09","P","P","P",null,null,null,null,"P","P","P",null,null,null,null,null,null,null,null,null,null,null,8]
["2022-08-10","P","P","P",null,null,null,null,"P","P","P",null,null,null,null,null,null,null,null,null,null,null,8]
["2022-08-11","P","P","P",null,null,null,null,"P","P","P",null,null,null,null,null,null,null,null,null,null,null,8]
["2022-08-12","P","P","P",null,null,null,null,"P","P","P",null,null,null,null,null,null,null,null,null,null,null,8]
["2022-08-13","P","P","P",null,null,null,null,"P","P","P",null,null,null,null,null,null,null,null,null,null,null,8]
["2022-08-14","P","P","P",null,null,null,null,"P","P","P",null,null,null,null,null,null,null,null,null,null,null,8]
["2022-08-15","P","P","P",null,null,null,null,"P","P","P",null,null,null,null,null,null,null,null,null,null,null,8]
["2022-08-16","P","P","P",null,null,null,null,"P","P","P",null,null,null,null,null,null,null,null,null,null,null,8]
["2022-08-17","P","P","P",null,null,null,null,"P","P","P",null,null,null,null,null,null,null,null,null,null,null,8]
["2022-08-18","P","P","P",null,null,null,null,"P","P","P",null,null,null,null,null,null,null,null,null,null,null,8]
["2022-08-19","P","P","P",null,null,null,null,"P","P","P",null,null,null,null,null,null,null,null,null,null,null,8]
["2022-08-20","P","P","P",null,null,null,null,"P","P","P",null,null,null,null,null,null,null,null,null,null,null,8]
["2022-08-21","P","P","P",null,null,null,null,"P","P","P",null,null,null,null,null,null,null,null,null,null,null,8]
["2022-08-22","P","P","P",null,null,null,null,"P","P","P",null,null,null,null,null,null,null,null,null,null,null,8]
["2022-08-23","P","P","P",null,null,null,null,"P","P","P",null,null,null,null,null,null,null,null,null,null,null,8]
["2022-08-24","P","P","P",null,null,null,null,"P","P","P",null,null,null,null,null,null,null,null,null,null,null,8]
["2022-08-25","P","P","P",null,null,null,null,"P","P","P",null,null,null,null,null,null,null,null,null,null,null,8]
["2022-08-26","P","P","P",null,null,null,null,"P","P","P",null,null,null,null,null,null,null,null,null,null,null,8]
["2022-08-27","P","P","P",null,null,null,null,"P","P","P",null,null,null,null,null,null,null,null,null,null,null,8]
["2022-08-28","P","P","P",null,null,null,null,"P","P","P",null,null,null,null,null,null,null,null,null,null,null,8]
["2022-08-29","P","P","P",null,null,null,null,"P","P","P",null,null,null,null,null,null,null,null,null,null,null,8]
["2022-08-30","P","P","P",null,null,null,null,"P","P","P",null,null,null,null,null,null,null,null,null,null,null,8]
["2022-08-31","P","P","P",null,null,null,null,"P","P","P",null,null,null,null,null,null,null,null,null,null,null,8]
["2022-09-01","P","P","P",null,null,null,null,"P","P","P",null,null,null,null,null,null,null,null,null,null,null,9]
["2022-09-02","P","P","P",null,null,null,null,"P","P","P",null,null,null,null,null,null,null,null,null,null,null,9]
["2022-09-03","P","P","P","P","P",null,null,"P","P","P","P","P",null,null,null,null,null,null,null,null,null,9]
["2022-09-04","P","P","P",null,null,null,null,"P","P","P",null,null,null,null,null,null,null,null,null,null,null,9]
["2022-09-05","P","P","P",null,null,null,null,"P","P","P",null,null,null,null,null,null,null,null,null,null,null,9]
["2022-09-06","P","P","P",null,null,null,null,"P","P","P",null,null,null,null,null,null,null,null,null,null,null,9]
["2022-09-07","P","P","P",null,null,null,null,"P","P","P",null,null,null,null,null,null,null,null,null,null,null,9]
["2022-09-08","P","P","P",null,null,null,null,"P","P","P",null,null,null,null,null,null,null,null,null,null,null,9]
["2022-09-09","P","P","P",null,null,null,null,"P","P","P",null,null,null,null,null,null,null,null,null,null,null,9]
["2022-09-10","P","P","P",null,null,null,null,"P","P","P",null,null,null,null,null,null,null,null,null,null,null,9]
["2022-09-11","P","P","P",null,null,null,null,"P","P","P",null,null,null,null,null,null,null,null,null,null,null,9]
["2022-09-12","P","P","P",null,null,null,null,"P","P","P",null,null,null,null,null,null,null,null,null,null,null,9]
["2022-09-13","P","P","P",null,null,null,null,"P","P","P",null,null,null,null,null,null,null,null,null,null,null,9]
["2022-09-14","P","P","P",null,null,null,null,"P","P","P",null,null,null,null,null,null,null,null,null,null,null,9]
["2022-09-15","P","P","P",null,null,null,null,"P","P","P",null,null,null,null,null,null,null,null,null,null,null,{"$f":"MONTH(A259)","v":9}]
["2022-09-16","P","P","P",null,null,null,null,"P","P","P",null,null,null,null,null,null,null,null,null,null,null,9]
["2022-09-17","P","P","P",null,null,null,null,"P","P","P",null,null,null,null,null,null,null,null,null,null,null,9]
["2022-09-18","P","P","P",null,null,null,null,"P","P","P",null,null,null,null,null,null,null,null,null,null,null,9]
["2022-09-19","P","P","P",null,null,null,null,"P","P","P",null,null,null,null,null,null,null,null,null,null,null,9]
["2022-09-20","P","P","P",null,null,null,null,"P","P","P",null,null,null,null,null,null,null,null,null,null,null,9]
["2022-09-21","P","P","P",null,null,null,null,"P","P","P",null,null,null,null,null,null,null,null,null,null,null,9]
["2022-09-22","P","P","P",null,null,null,null,"P","P","P",null,null,null,null,null,null,null,null,null,null,null,9]
["2022-09-23","P","P","P",null,null,null,null,"P","P","P",null,null,null,null,null,null,null,null,null,null,null,9]
["2022-09-24","P","P","P",null,null,null,null,"P","P","P",null,null,null,null,null,null,null,null,null,null,null,9]
["2022-09-25","P","P","P",null,null,null,null,"P","P","P",null,null,null,null,null,null,null,null,null,null,null,9]
["2022-09-26","P","P","P",null,null,null,null,"P","P","P",null,null,null,null,null,null,null,null,null,null,null,9]
["2022-09-27","P","P","P",null,null,null,null,"P","P","P",null,null,null,null,null,null,null,null,null,null,null,9]
["2022-09-28","P","P","P",null,null,null,null,"P","P","P",null,null,null,null,null,null,null,null,null,null,null,9]
["2022-09-29","P","P","P",null,null,null,null,"P","P","P",null,null,null,null,null,null,null,null,null,null,null,9]
["2022-09-30","P","P","P",null,null,null,null,"P","P","P",null,null,null,null,null,null,null,null,null,null,null,9]
["2022-10-01","P","P","P","P","P",null,null,"P","P","P","P","P",null,null,null,null,null,null,null,null,null,10]
["2022-10-02","P","P","P",null,null,null,null,"P","P","P",null,null,null,null,null,null,null,null,null,null,null,10]
["2022-10-03","P","P","P",null,null,null,null,"P","P","P",null,null,null,null,null,null,null,null,null,null,null,10]
["2022-10-04","P","P","P",null,null,null,null,"P","P","P",null,null,null,null,null,null,null,null,null,null,null,10]
["2022-10-05","P","P","P",null,null,null,null,"P","P","P",null,null,null,null,null,null,null,null,null,null,null,10]
["2022-10-06","P","P","P",null,null,null,null,"P","P","P",null,null,null,null,null,null,null,null,null,null,null,10]
["2022-10-07","P","P","P",null,null,null,null,"P","P","P",null,null,null,null,null,null,null,null,null,null,null,10]
["2022-10-08","P","P","P",null,null,null,null,"P","P","P",null,null,null,null,null,null,null,null,null,null,null,10]
["2022-10-09","P","P","P",null,null,null,null,"P","P","P",null,null,null,null,null,null,null,null,null,null,null,10]
["2022-10-10","P","P","P",null,null,null,null,"P","P","P",null,null,null,null,null,null,null,null,null,null,null,10]
["2022-10-11","P","P","P",null,null,null,null,"P","P","P",null,null,null,null,null,null,null,null,null,null,null,10]
["2022-10-12","P","P","P",null,null,null,null,"P","P","P",null,null,null,null,null,null,null,null,null,null,null,10]
["2022-10-13","P","P","P",null,null,null,null,"P","P","P",null,null,null,null,null,null,null,null,null,null,null,10]
["2022-10-14","P","P","P",null,null,null,null,"P","P","P",null,null,null,null,null,null,null,null,null,null,null,10]
["2022-10-15","P","P","P",null,null,null,null,"P","P","P",null,null,null,null,null,null,null,null,null,null,null,10]
["2022-10-16","P","P","P",null,null,null,null,"P","P","P",null,null,null,null,null,null,null,null,null,null,null,10]
["2022-10-17","P","P","P",null,null,null,null,"P","P","P",null,null,null,null,null,null,null,null,null,null,null,10]
["2022-10-18","P","P","P",null,null,null,null,"P","P","P",null,null,null,null,null,null,null,null,null,null,null,10]
["2022-10-19","P","P","P",null,null,null,null,"P","P","P",null,null,null,null,null,null,null,null,null,null,null,10]
["2022-10-20","P","P","P",null,null,null,null,"P","P","P",null,null,null,null,null,null,null,null,null,null,null,10]
["2022-10-21","P","P","P",null,null,null,null,"P","P","P",null,null,null,null,null,null,null,null,null,null,null,10]
["2022-10-22","P","P","P",null,null,null,null,"P","P","P",null,null,null,null,null,null,null,null,null,null,null,10]
["2022-10-23","P","P","P",null,null,null,null,"P","P","P",null,null,null,null,null,null,null,null,null,null,null,10]
["2022-10-24","P","P","P",null,null,null,null,"P","P","P",null,null,null,null,null,null,null,null,null,null,null,10]
["2022-10-25","P","P","P",null,null,null,null,"P","P","P",null,null,null,null,null,null,null,null,null,null,null,10]
["2022-10-26","P","P","P",null,null,null,null,"P","P","P",null,null,null,null,null,null,null,null,null,null,null,10]
["2022-10-27","P","P","P",null,null,null,null,"P","P","P",null,null,null,null,null,null,null,null,null,null,null,10]
["2022-10-28","P","P","P",null,null,null,null,"P","P","P",null,null,null,null,null,null,null,null,null,null,null,10]
["2022-10-29","P","P","P",null,null,null,null,"P","P","P",null,null,null,null,null,null,null,null,null,null,null,10]
["2022-10-30","P","P","P",null,null,null,null,"P","P","P",null,null,null,null,null,null,null,null,null,null,null,10]
["2022-10-31","P","P","P",null,null,null,null,"P","P","P",null,null,null,null,null,null,null,null,null,null,null,10]
["2022-11-01","P","P","P",null,null,null,null,"P","P","P",null,null,null,null,null,null,null,null,null,null,null,11]
["2022-11-02","P","P","P",null,null,null,null,"P","P","P",null,null,null,null,null,null,null,null,null,null,null,11]
["2022-11-03","P","P","P",null,null,null,null,"P","P","P",null,null,null,null,null,null,null,null,null,null,null,11]
["2022-11-04","P","P","P",null,null,null,null,"P","P","P",null,null,null,null,null,null,null,null,null,null,null,11]
["2022-11-05","P","P","P",null,null,null,null,"P","P","P",null,null,null,null,null,null,null,null,null,null,null,11]
["2022-11-06","P","P","P",null,null,null,null,"P","P","P",null,null,null,null,null,null,null,null,null,null,null,11]
["2022-11-07","P","P","P",null,null,null,null,"P","P","P",null,null,null,null,null,null,null,null,null,null,null,11]
["2022-11-08","P","P","P",null,null,null,null,"P","P","P",null,null,null,null,null,null,null,null,null,null,null,11]
["2022-11-09","P","P","P",null,null,null,null,"P","P","P",null,null,null,null,null,null,null,null,null,null,null,11]
["2022-11-10","P","P","P",null,null,null,null,"P","P","P",null,null,null,null,null,null,null,null,null,null,null,11]
["2022-11-11","P","P","P",null,null,null,null,"P","P","P",null,null,null,null,null,null,null,null,null,null,null,11]
["2022-11-12","P","P","P","P","P",null,null,"P","P","P","P","P",null,null,null,null,null,null,null,null,null,11]
["2022-11-13","P","P","P",null,null,null,null,"P","P","P",null,null,null,null,null,null,null,null,null,null,null,11]
["2022-11-14","P","P","P",null,null,null,null,"P","P","P",null,null,null,null,null,null,null,null,null,null,null,11]
["2022-11-15","P","P","P",null,null,null,null,"P","P","P",null,null,null,null,null,null,null,null,null,null,null,11]
["2022-11-16","P","P","P",null,null,null,null,"P","P","P",null,null,null,null,null,null,null,null,null,null,null,11]
["2022-11-17","P","P","P",null,null,null,null,"P","P","P",null,null,null,null,null,null,null,null,null,null,null,11]
["2022-11-18","P","P","P",null,null,null,null,"P","P","P",null,null,null,null,null,null,null,null,null,null,null,{"$f":"MONTH(A323)","v":11}]
["2022-11-19","P","P","P",null,null,null,null,"P","P","P",null,null,null,null,null,null,null,null,null,null,null,11]
["2022-11-20","P","P","P",null,null,null,null,"P","P","P",null,null,null,null,null,null,null,null,null,null,null,11]
["2022-11-21","P","P","P",null,null,null,null,"P","P","P",null,null,null,null,null,null,null,null,null,null,null,11]
["2022-11-22","P","P","P",null,null,null,null,"P","P","P",null,null,null,null,null,null,null,null,null,null,null,11]
["2022-11-23","P","P","P",null,null,null,null,"P","P","P",null,null,null,null,null,null,null,null,null,null,null,11]
["2022-11-24","P","P","P",null,null,null,null,"P","P","P",null,null,null,null,null,null,null,null,null,null,null,11]
["2022-11-25","P","P","P",null,null,null,null,"P","P","P",null,null,null,null,null,null,null,null,null,null,null,11]
["2022-11-26","P","P","P",null,null,null,null,"P","P","P",null,null,null,null,null,null,null,null,null,null,null,11]
["2022-11-27","P","P","P",null,null,null,null,"P","P","P",null,null,null,null,null,null,null,null,null,null,null,11]
["2022-11-28","P","P","P",null,null,null,null,"P","P","P",null,null,null,null,null,null,null,null,null,null,null,11]
["2022-11-29","P","P","P",null,null,null,null,"P","P","P",null,null,null,null,null,null,null,null,null,null,null,11]
["2022-11-30","P","P","P",null,null,null,null,"P","P","P",null,null,null,null,null,null,null,null,null,null,null,11]
["2022-12-01","P","P","P",null,null,null,null,"P","P","P",null,null,null,null,null,null,null,null,null,null,null,12]
["2022-12-02","P","P","P",null,null,null,null,"P","P","P",null,null,null,null,null,null,null,null,null,null,null,12]
["2022-12-03","P","P","P",null,null,null,null,"P","P","P",null,null,null,null,null,null,null,null,null,null,null,12]
["2022-12-04","P","P","P",null,null,null,null,"P","P","P",null,null,null,null,null,null,null,null,null,null,null,12]
["2022-12-05","P","P","P",null,null,null,null,"P","P","P",null,null,null,null,null,null,null,null,null,null,null,12]
["2022-12-06","P","P","P",null,null,null,null,"P","P","P",null,null,null,null,null,null,null,null,null,null,null,12]
["2022-12-07","P","P","P",null,null,null,null,"P","P","P",null,null,null,null,null,null,null,null,null,null,null,12]
["2022-12-08","P","P","P",null,null,null,null,"P","P","P",null,null,null,null,null,null,null,null,null,null,null,12]
["2022-12-09","P","P","P",null,null,null,null,"P","P","P",null,null,null,null,null,null,null,null,null,null,null,12]
["2022-12-10","P","P","P","P","P",null,null,"P","P","P","P","P",null,null,null,null,null,null,null,null,null,12]
["2022-12-11","P","P","P",null,null,null,null,"P","P","P",null,null,null,null,null,null,null,null,null,null,null,12]
["2022-12-12","P","P","P",null,null,null,null,"P","P","P",null,null,null,null,null,null,null,null,null,null,null,12]
["2022-12-13","P","P","P",null,null,null,null,"P","P","P",null,null,null,null,null,null,null,null,null,null,null,12]
["2022-12-14","P","P","P",null,null,null,null,"P","P","P",null,null,null,null,null,null,null,null,null,null,null,12]
["2022-12-15","P","P","P",null,null,null,null,"P","P","P",null,null,null,null,null,null,null,null,null,null,null,12]
["2022-12-16","P","P","P",null,null,null,null,"P","P","P",null,null,null,null,null,null,null,null,null,null,null,12]
["2022-12-17","P","P","P",null,null,null,null,"P","P","P",null,null,null,null,null,null,null,null,null,null,null,12]
["2022-12-18","P","P","P",null,null,null,null,"P","P","P",null,null,null,null,null,null,null,null,null,null,null,12]
["2022-12-19","P","P","P",null,null,null,null,"P","P","P",null,null,null,null,null,null,null,null,null,null,null,12]
["2022-12-20","P","P","P",null,null,null,null,"P","P","P",null,null,null,null,null,null,null,null,null,null,null,12]
["2022-12-21","P","P","P",null,null,null,null,"P","P","P",null,null,null,null,null,null,null,null,null,null,null,12]
["2022-12-22","P","P","P",null,null,null,null,"P","P","P",null,null,null,null,null,null,null,null,null,null,null,12]
["2022-12-23","P","P","P",null,null,null,null,"P","P","P",null,null,null,null,null,null,null,null,null,null,null,12]
["2022-12-24","P","P","P",null,null,null,null,"P","P","P",null,null,null,null,null,null,null,null,null,null,null,12]
["2022-12-25","P","P","P",null,null,null,null,"P","P","P",null,null,null,null,null,null,null,null,null,null,null,12]
["2022-12-26","P","P","P",null,null,null,null,"P","P","P",null,null,null,null,null,null,null,null,null,null,null,12]
["2022-12-27","P","P","P",null,null,null,null,"P","P","P",null,null,null,null,null,null,null,null,null,null,null,12]
["2022-12-28","P","P","P",null,null,null,null,"P","P","P",null,null,null,null,null,null,null,null,null,null,null,12]
["2022-12-29","P","P","P",null,null,null,null,"P","P","P",null,null,null,null,null,null,null,null,null,null,null,12]
["2022-12-30","P","P","P",null,null,null,null,"P","P","P",null,null,null,null,null,null,null,null,null,null,null,12]
["2022-12-31","P","P","P","P","P",null,null,"P","P","P","P","P",null,null,null,null,null,null,null,null,null,12]

{"sheet":"AUTOSCAN 2022","index":1,"n_rows":55,"n_cols":30,"rows_kept":55,"cut":false,"hidden":false,"merged":[[5,13,5,18],[1,2,5,3],[2,4,5,12],[10,0,12,0],[13,0,14,0],[1,4,1,12],[1,13,1,18],[2,13,2,18],[3,13,3,18],[4,13,4,18],[15,0,16,0],[15,1,15,32],[16,1,16,32],[28,3,28,14],[20,1,23,2],[20,3,20,14],[21,3,21,14],[22,3,22,14],[23,3,23,14],[25,1,28,2],[35,2,35,4],[35,9,35,16],[35,17,35,18],[31,8,36,8],[36,9,36,16],[36,17,36,18],[32,2,32,4],[32,9,32,16],[32,17,32,18],[33,2,33,4],[33,9,33,16],[33,17,33,18],[31,2,31,4],[31,9,31,16],[31,17,31,18],[34,2,34,4],[34,9,34,16],[34,17,34,18],[20,16,23,17],[20,18,20,29],[21,18,21,29],[22,18,22,29],[23,18,23,29],[25,16,28,17],[25,18,25,29],[26,18,26,29],[27,18,27,29],[25,3,25,14],[26,3,26,14],[27,3,27,14],[28,18,28,29]]}
[]
[null,null,null,null,"Fiche",null,null,null,null,null,null,null,null,"Référence : FI-S3-03\n"]
[null,null,null,null,"MAINTENANCE AUTOS\n",null,null,null,null,null,null,null,null,"Version : 04\n\n"]
[]
[]
[null,null,null,null,null,null,null,null,null,null,null,null,null,"Page : 1 / 1"]
[]
["Mois","février",2022]
[]
["Maintenance","Colonnes","2022-02-01","2022-02-02","2022-02-03","2022-02-04","2022-02-05","2022-02-06","2022-02-07","2022-02-08","2022-02-09","2022-02-10","2022-02-11","2022-02-12","2022-02-13","2022-02-14","2022-02-15","2022-02-16","2022-02-17","2022-02-18","2022-02-19","2022-02-20","2022-02-21","2022-02-22","2022-02-23","2022-02-24","2022-02-25","2022-02-26","2022-02-27","2022-02-28"]
["Quotidienne","CQ","ANU","ANU","R","R","ANU","P","P","P","P","P","P","P","P","P","P","P","P","P","P","P","P","P","P","P","P","P","P","P"]
[null,"Etalonnage","ANU","ANU","R","R","ANU","P","P","P","P","P","P","P","P","P","P","P","P","P","P","P","P","P","P","P","P","P","P","P"]
[null,"Ventilateur ","ANU","ANU","R","R","ANU","P","P","P","P","P","P","P","P","P","P","P","P","P","P","P","P","P","P","P","P","P","P","P"]
["Mensuel","Ecran diffuseur",null,null,null,null,null,null,null,null,null,null,null,null,null,null,null,null,null,null,"P"]
[null,"Ecran photodiode",null,null,null,null,null,null,null,null,null,null,null,null,null,null,null,null,null,null,"P"]
["Selon le besoin"]
[]
[]
[]
[]
[null,"Maintenance Curative",null,null,null,null,null,null,null,null,null,null,null,null,null,null,"Maintenance Curative"]
[]
[]
[]
[]
[null,"Maintenance Préventive",null,null,null,null,null,null,null,null,null,null,null,null,null,null,"Maintenance Préventive"]
[]
[]
[]
[]
[]
[null,"RE","En Retard",null,null,null,null,null,"Taux de realisation mensuel","Automate non utilisé",null,null,null,null,null,null,null,{"$f":"COUNTIFS(Bd!$W$2:$W$366,MONTH($C$10),Bd!$B$2:$B$366,\"ANU\")+COUNTIFS(Bd!$W$2:$W$366,MONTH($C$10),Bd!$C$2:$C$366,\"ANU\")+COUNTIFS(Bd!$W$2:$W$366,MONTH($C$10),Bd!$D$2:$D$366,\"ANU\")+COUNTIFS(Bd!$W$2:$W$366,MONTH($C$10),Bd!$E$2:$E$366,\"ANU\")+COUNTIFS(Bd!$W$2:$W$366,MONTH($C$10),Bd!$F$2:$F$366,\"ANU\")","v":9},{"$f":"COUNTIFS(Bd!$W$2:$W$366,MONTH($C$10),Bd!$B$2:$B$366,\"ANU\")","v":3}]
[null,"R","Réalisé",null,null,null,null,null,null,"Nombre des évenements planifiés",null,null,null,null,null,null,null,{"$f":"COUNTIFS(Bd!$W$2:$W$366,MONTH($C$10),Bd!$I$2:$I$366,\"P\")+COUNTIFS(Bd!$W$2:$W$366,MONTH($C$10),Bd!$J$2:$J$366,\"P\")+COUNTIFS(Bd!$W$2:$W$366,MONTH($C$10),Bd!$K$2:$K$366,\"P\")+COUNTIFS(Bd!$W$2:$W$366,MONTH($C$10),Bd!$L$2:$L$366,\"P\")+COUNTIFS(Bd!$W$2:$W$366,MONTH($C$10),Bd!$M$2:$M$366,\"P\")","v":86},{"$f":"COUNTIFS(Bd!$W$2:$W$366,MONTH($C$10),Bd!$B$2:$B$366,\"ANU\")","v":3}]
[null,"NR","Non réalisé",null,null,null,null,null,null,"Nombre des évenements réalisés",null,null,null,null,null,null,null,{"$f":"COUNTIFS(Bd!$W$2:$W$366,MONTH($C$10),Bd!$B$2:$B$366,\"R\")+COUNTIFS(Bd!$W$2:$W$366,MONTH($C$10),Bd!$C$2:$C$366,\"R\")+COUNTIFS(Bd!$W$2:$W$366,MONTH($C$10),Bd!$D$2:$D$366,\"R\")+COUNTIFS(Bd!$W$2:$W$366,MONTH($C$10),Bd!$E$2:$E$366,\"R\")+COUNTIFS(Bd!$W$2:$W$366,MONTH($C$10),Bd!$F$2:$F$366,\"R\")","v":6},{"$f":"COUNTIFS(Bd!$W$2:$W$366,MONTH($C$10),Bd!$B$2:$B$366,\"ANU\")","v":3}]
[null,"P","Planifiés",null,null,null,null,null,null,"Nombre des évenements en retard",null,null,null,null,null,null,null,{"$f":"COUNTIFS(Bd!$W$2:$W$366,MONTH($C$10),Bd!$B$2:$B$366,\"RE\")+COUNTIFS(Bd!$W$2:$W$366,MONTH($C$10),Bd!$C$2:$C$366,\"RE\")+COUNTIFS(Bd!$W$2:$W$366,MONTH($C$10),Bd!$D$2:$D$366,\"RE\")+COUNTIFS(Bd!$W$2:$W$366,MONTH($C$10),Bd!$E$2:$E$366,\"RE\")+COUNTIFS(Bd!$W$2:$W$366,MONTH($C$10),Bd!$F$2:$F$366,\"RE\")","v":0},{"$f":"COUNTIFS(Bd!$W$2:$W$366,MONTH($C$10),Bd!$B$2:$B$366,\"ANU\")","v":3}]
[null,"ANU","Automate non utilisé",null,null,null,null,null,null,"Nombre des évenements non réalisés",null,null,null,null,null,null,null,{"$f":"COUNTIFS(Bd!$W$2:$W$366,MONTH($C$10),Bd!$B$2:$B$366,\"NR\")+COUNTIFS(Bd!$W$2:$W$366,MONTH($C$10),Bd!$C$2:$C$366,\"NR\")+COUNTIFS(Bd!$W$2:$W$366,MONTH($C$10),Bd!$D$2:$D$366,\"NR\")+COUNTIFS(Bd!$W$2:$W$366,MONTH($C$10),Bd!$E$2:$E$366,\"NR\")+COUNTIFS(Bd!$W$2:$W$366,MONTH($C$10),Bd!$F$2:$F$366,\"NR\")","v":0},{"$f":"COUNTIFS(Bd!$W$2:$W$366,MONTH($C$10),Bd!$B$2:$B$366,\"ANU\")","v":3}]
[null,null,null,null,null,null,null,null,null,"Taux de réalisation",null,null,null,null,null,null,null,{"$f":"(R35+R34)/(R33-R32)","v":7.792207792207792E-2}]
[]
[]
[]
[]
[]
[null,null,"Automate non utilisé","Nombre des évenements planifiés","Nombre des évenements réalisés","Nombre des évenements en retard","Nombre des évenements non réalisés","Taux de réalisation"]
[null,"2021-01-01",{"$f":"COUNTIFS(Bd!$W$2:$W$366,MONTH($B44),Bd!$B$2:$B$366,\"ANU\")+COUNTIFS(Bd!$W$2:$W$366,MONTH($B44),Bd!$C$2:$C$366,\"ANU\")+COUNTIFS(Bd!$W$2:$W$366,MONTH($B44),Bd!$D$2:$D$366,\"ANU\")+COUNTIFS(Bd!$W$2:$W$366,MONTH($B44),Bd!$E$2:$E$366,\"ANU\")+COUNTIFS(Bd!$W$2:$W$366,MONTH($B44),Bd!$F$2:$F$366,\"ANU\")","v":3},{"$f":"COUNTIFS(Bd!$W$2:$W$366,MONTH($B44),Bd!$I$2:$I$366,\"P\")+COUNTIFS(Bd!$W$2:$W$366,MONTH($B44),Bd!$J$2:$J$366,\"P\")+COUNTIFS(Bd!$W$2:$W$366,MONTH($B44),Bd!$K$2:$K$366,\"P\")+COUNTIFS(Bd!$W$2:$W$366,MONTH($B44),Bd!$L$2:$L$366,\"P\")+COUNTIFS(Bd!$W$2:$W$366,MONTH($B44),Bd!$M$2:$M$366,\"P\")","v":95},{"$f":"COUNTIFS(Bd!$W$2:$W$366,MONTH($B44),Bd!$B$2:$B$366,\"R\")+COUNTIFS(Bd!$W$2:$W$366,MONTH($B44),Bd!$C$2:$C$366,\"R\")+COUNTIFS(Bd!$W$2:$W$366,MONTH($B44),Bd!$D$2:$D$366,\"R\")+COUNTIFS(Bd!$W$2:$W$366,MONTH($B44),Bd!$E$2:$E$366,\"R\")+COUNTIFS(Bd!$W$2:$W$366,MONTH($B44),Bd!$F$2:$F$366,\"R\")","v":0},{"$f":"COUNTIFS(Bd!$W$2:$W$366,MONTH($B44),Bd!$B$2:$B$366,\"RE\")+COUNTIFS(Bd!$W$2:$W$366,MONTH($B44),Bd!$C$2:$C$366,\"RE\")+COUNTIFS(Bd!$W$2:$W$366,MONTH($B44),Bd!$D$2:$D$366,\"RE\")+COUNTIFS(Bd!$W$2:$W$366,MONTH($B44),Bd!$E$2:$E$366,\"RE\")+COUNTIFS(Bd!$W$2:$W$366,MONTH($B44),Bd!$F$2:$F$366,\"RE\")","v":0},{"$f":"COUNTIFS(Bd!$W$2:$W$366,MONTH($B44),Bd!$B$2:$B$366,\"NR\")+COUNTIFS(Bd!$W$2:$W$366,MONTH($B44),Bd!$C$2:$C$366,\"NR\")+COUNTIFS(Bd!$W$2:$W$366,MONTH($B44),Bd!$D$2:$D$366,\"NR\")+COUNTIFS(Bd!$W$2:$W$366,MONTH($B44),Bd!$E$2:$E$366,\"NR\")+COUNTIFS(Bd!$W$2:$W$366,MONTH($B44),Bd!$F$2:$F$366,\"NR\")","v":0},{"$f":"(F44+E44)/(D44-C44)","v":0}]
[null,"2021-02-01",{"$f":"COUNTIFS(Bd!$W$2:$W$366,MONTH($B45),Bd!$B$2:$B$366,\"ANU\")+COUNTIFS(Bd!$W$2:$W$366,MONTH($B45),Bd!$C$2:$C$366,\"ANU\")+COUNTIFS(Bd!$W$2:$W$366,MONTH($B45),Bd!$D$2:$D$366,\"ANU\")+COUNTIFS(Bd!$W$2:$W$366,MONTH($B45),Bd!$E$2:$E$366,\"ANU\")+COUNTIFS(Bd!$W$2:$W$366,MONTH($B45),Bd!$F$2:$F$366,\"ANU\")","v":9},{"$f":"COUNTIFS(Bd!$W$2:$W$366,MONTH($B45),Bd!$I$2:$I$366,\"P\")+COUNTIFS(Bd!$W$2:$W$366,MONTH($B45),Bd!$J$2:$J$366,\"P\")+COUNTIFS(Bd!$W$2:$W$366,MONTH($B45),Bd!$K$2:$K$366,\"P\")+COUNTIFS(Bd!$W$2:$W$366,MONTH($B45),Bd!$L$2:$L$366,\"P\")+COUNTIFS(Bd!$W$2:$W$366,MONTH($B45),Bd!$M$2:$M$366,\"P\")","v":86},{"$f":"COUNTIFS(Bd!$W$2:$W$366,MONTH($B45),Bd!$B$2:$B$366,\"R\")+COUNTIFS(Bd!$W$2:$W$366,MONTH($B45),Bd!$C$2:$C$366,\"R\")+COUNTIFS(Bd!$W$2:$W$366,MONTH($B45),Bd!$D$2:$D$366,\"R\")+COUNTIFS(Bd!$W$2:$W$366,MONTH($B45),Bd!$E$2:$E$366,\"R\")+COUNTIFS(Bd!$W$2:$W$366,MONTH($B45),Bd!$F$2:$F$366,\"R\")","v":6},{"$f":"COUNTIFS(Bd!$W$2:$W$366,MONTH($B45),Bd!$B$2:$B$366,\"RE\")+COUNTIFS(Bd!$W$2:$W$366,MONTH($B45),Bd!$C$2:$C$366,\"RE\")+COUNTIFS(Bd!$W$2:$W$366,MONTH($B45),Bd!$D$2:$D$366,\"RE\")+COUNTIFS(Bd!$W$2:$W$366,MONTH($B45),Bd!$E$2:$E$366,\"RE\")+COUNTIFS(Bd!$W$2:$W$366,MONTH($B45),Bd!$F$2:$F$366,\"RE\")","v":0},{"$f":"COUNTIFS(Bd!$W$2:$W$366,MONTH($B45),Bd!$B$2:$B$366,\"NR\")+COUNTIFS(Bd!$W$2:$W$366,MONTH($B45),Bd!$C$2:$C$366,\"NR\")+COUNTIFS(Bd!$W$2:$W$366,MONTH($B45),Bd!$D$2:$D$366,\"NR\")+COUNTIFS(Bd!$W$2:$W$366,MONTH($B45),Bd!$E$2:$E$366,\"NR\")+COUNTIFS(Bd!$W$2:$W$366,MONTH($B45),Bd!$F$2:$F$366,\"NR\")","v":0},{"$f":"(F45+E45)/(D45-C45)","v":7.792207792207792E-2}]
[null,"2021-03-01",{"$f":"COUNTIFS(Bd!$W$2:$W$366,MONTH($B46),Bd!$B$2:$B$366,\"ANU\")+COUNTIFS(Bd!$W$2:$W$366,MONTH($B46),Bd!$C$2:$C$366,\"ANU\")+COUNTIFS(Bd!$W$2:$W$366,MONTH($B46),Bd!$D$2:$D$366,\"ANU\")+COUNTIFS(Bd!$W$2:$W$366,MONTH($B46),Bd!$E$2:$E$366,\"ANU\")+COUNTIFS(Bd!$W$2:$W$366,MONTH($B46),Bd!$F$2:$F$366,\"ANU\")","v":0},{"$f":"COUNTIFS(Bd!$W$2:$W$366,MONTH($B46),Bd!$I$2:$I$366,\"P\")+COUNTIFS(Bd!$W$2:$W$366,MONTH($B46),Bd!$J$2:$J$366,\"P\")+COUNTIFS(Bd!$W$2:$W$366,MONTH($B46),Bd!$K$2:$K$366,\"P\")+COUNTIFS(Bd!$W$2:$W$366,MONTH($B46),Bd!$L$2:$L$366,\"P\")+COUNTIFS(Bd!$W$2:$W$366,MONTH($B46),Bd!$M$2:$M$366,\"P\")","v":95},{"$f":"COUNTIFS(Bd!$W$2:$W$366,MONTH($B46),Bd!$B$2:$B$366,\"R\")+COUNTIFS(Bd!$W$2:$W$366,MONTH($B46),Bd!$C$2:$C$366,\"R\")+COUNTIFS(Bd!$W$2:$W$366,MONTH($B46),Bd!$D$2:$D$366,\"R\")+COUNTIFS(Bd!$W$2:$W$366,MONTH($B46),Bd!$E$2:$E$366,\"R\")+COUNTIFS(Bd!$W$2:$W$366,MONTH($B46),Bd!$F$2:$F$366,\"R\")","v":0},{"$f":"COUNTIFS(Bd!$W$2:$W$366,MONTH($B46),Bd!$B$2:$B$366,\"RE\")+COUNTIFS(Bd!$W$2:$W$366,MONTH($B46),Bd!$C$2:$C$366,\"RE\")+COUNTIFS(Bd!$W$2:$W$366,MONTH($B46),Bd!$D$2:$D$366,\"RE\")+COUNTIFS(Bd!$W$2:$W$366,MONTH($B46),Bd!$E$2:$E$366,\"RE\")+COUNTIFS(Bd!$W$2:$W$366,MONTH($B46),Bd!$F$2:$F$366,\"RE\")","v":0},{"$f":"COUNTIFS(Bd!$W$2:$W$366,MONTH($B46),Bd!$B$2:$B$366,\"NR\")+COUNTIFS(Bd!$W$2:$W$366,MONTH($B46),Bd!$C$2:$C$366,\"NR\")+COUNTIFS(Bd!$W$2:$W$366,MONTH($B46),Bd!$D$2:$D$366,\"NR\")+COUNTIFS(Bd!$W$2:$W$366,MONTH($B46),Bd!$E$2:$E$366,\"NR\")+COUNTIFS(Bd!$W$2:$W$366,MONTH($B46),Bd!$F$2:$F$366,\"NR\")","v":0},0]
[null,"2021-04-01",{"$f":"COUNTIFS(Bd!$W$2:$W$366,MONTH($B47),Bd!$B$2:$B$366,\"ANU\")+COUNTIFS(Bd!$W$2:$W$366,MONTH($B47),Bd!$C$2:$C$366,\"ANU\")+COUNTIFS(Bd!$W$2:$W$366,MONTH($B47),Bd!$D$2:$D$366,\"ANU\")+COUNTIFS(Bd!$W$2:$W$366,MONTH($B47),Bd!$E$2:$E$366,\"ANU\")+COUNTIFS(Bd!$W$2:$W$366,MONTH($B47),Bd!$F$2:$F$366,\"ANU\")","v":0},{"$f":"COUNTIFS(Bd!$W$2:$W$366,MONTH($B47),Bd!$I$2:$I$366,\"P\")+COUNTIFS(Bd!$W$2:$W$366,MONTH($B47),Bd!$J$2:$J$366,\"P\")+COUNTIFS(Bd!$W$2:$W$366,MONTH($B47),Bd!$K$2:$K$366,\"P\")+COUNTIFS(Bd!$W$2:$W$366,MONTH($B47),Bd!$L$2:$L$366,\"P\")+COUNTIFS(Bd!$W$2:$W$366,MONTH($B47),Bd!$M$2:$M$366,\"P\")","v":92},{"$f":"COUNTIFS(Bd!$W$2:$W$366,MONTH($B47),Bd!$B$2:$B$366,\"R\")+COUNTIFS(Bd!$W$2:$W$366,MONTH($B47),Bd!$C$2:$C$366,\"R\")+COUNTIFS(Bd!$W$2:$W$366,MONTH($B47),Bd!$D$2:$D$366,\"R\")+COUNTIFS(Bd!$W$2:$W$366,MONTH($B47),Bd!$E$2:$E$366,\"R\")+COUNTIFS(Bd!$W$2:$W$366,MONTH($B47),Bd!$F$2:$F$366,\"R\")","v":0},{"$f":"COUNTIFS(Bd!$W$2:$W$366,MONTH($B47),Bd!$B$2:$B$366,\"RE\")+COUNTIFS(Bd!$W$2:$W$366,MONTH($B47),Bd!$C$2:$C$366,\"RE\")+COUNTIFS(Bd!$W$2:$W$366,MONTH($B47),Bd!$D$2:$D$366,\"RE\")+COUNTIFS(Bd!$W$2:$W$366,MONTH($B47),Bd!$E$2:$E$366,\"RE\")+COUNTIFS(Bd!$W$2:$W$366,MONTH($B47),Bd!$F$2:$F$366,\"RE\")","v":0},{"$f":"COUNTIFS(Bd!$W$2:$W$366,MONTH($B47),Bd!$B$2:$B$366,\"NR\")+COUNTIFS(Bd!$W$2:$W$366,MONTH($B47),Bd!$C$2:$C$366,\"NR\")+COUNTIFS(Bd!$W$2:$W$366,MONTH($B47),Bd!$D$2:$D$366,\"NR\")+COUNTIFS(Bd!$W$2:$W$366,MONTH($B47),Bd!$E$2:$E$366,\"NR\")+COUNTIFS(Bd!$W$2:$W$366,MONTH($B47),Bd!$F$2:$F$366,\"NR\")","v":0},0]
[null,"2021-05-01",{"$f":"COUNTIFS(Bd!$W$2:$W$366,MONTH($B48),Bd!$B$2:$B$366,\"ANU\")+COUNTIFS(Bd!$W$2:$W$366,MONTH($B48),Bd!$C$2:$C$366,\"ANU\")+COUNTIFS(Bd!$W$2:$W$366,MONTH($B48),Bd!$D$2:$D$366,\"ANU\")+COUNTIFS(Bd!$W$2:$W$366,MONTH($B48),Bd!$E$2:$E$366,\"ANU\")+COUNTIFS(Bd!$W$2:$W$366,MONTH($B48),Bd!$F$2:$F$366,\"ANU\")","v":0},{"$f":"COUNTIFS(Bd!$W$2:$W$366,MONTH($B48),Bd!$I$2:$I$366,\"P\")+COUNTIFS(Bd!$W$2:$W$366,MONTH($B48),Bd!$J$2:$J$366,\"P\")+COUNTIFS(Bd!$W$2:$W$366,MONTH($B48),Bd!$K$2:$K$366,\"P\")+COUNTIFS(Bd!$W$2:$W$366,MONTH($B48),Bd!$L$2:$L$366,\"P\")+COUNTIFS(Bd!$W$2:$W$366,MONTH($B48),Bd!$M$2:$M$366,\"P\")","v":95},{"$f":"COUNTIFS(Bd!$W$2:$W$366,MONTH($B48),Bd!$B$2:$B$366,\"R\")+COUNTIFS(Bd!$W$2:$W$366,MONTH($B48),Bd!$C$2:$C$366,\"R\")+COUNTIFS(Bd!$W$2:$W$366,MONTH($B48),Bd!$D$2:$D$366,\"R\")+COUNTIFS(Bd!$W$2:$W$366,MONTH($B48),Bd!$E$2:$E$366,\"R\")+COUNTIFS(Bd!$W$2:$W$366,MONTH($B48),Bd!$F$2:$F$366,\"R\")","v":0},{"$f":"COUNTIFS(Bd!$W$2:$W$366,MONTH($B48),Bd!$B$2:$B$366,\"RE\")+COUNTIFS(Bd!$W$2:$W$366,MONTH($B48),Bd!$C$2:$C$366,\"RE\")+COUNTIFS(Bd!$W$2:$W$366,MONTH($B48),Bd!$D$2:$D$366,\"RE\")+COUNTIFS(Bd!$W$2:$W$366,MONTH($B48),Bd!$E$2:$E$366,\"RE\")+COUNTIFS(Bd!$W$2:$W$366,MONTH($B48),Bd!$F$2:$F$366,\"RE\")","v":0},{"$f":"COUNTIFS(Bd!$W$2:$W$366,MONTH($B48),Bd!$B$2:$B$366,\"NR\")+COUNTIFS(Bd!$W$2:$W$366,MONTH($B48),Bd!$C$2:$C$366,\"NR\")+COUNTIFS(Bd!$W$2:$W$366,MONTH($B48),Bd!$D$2:$D$366,\"NR\")+COUNTIFS(Bd!$W$2:$W$366,MONTH($B48),Bd!$E$2:$E$366,\"NR\")+COUNTIFS(Bd!$W$2:$W$366,MONTH($B48),Bd!$F$2:$F$366,\"NR\")","v":0},0]
[null,"2021-06-01",{"$f":"COUNTIFS(Bd!$W$2:$W$366,MONTH($B49),Bd!$B$2:$B$366,\"ANU\")+COUNTIFS(Bd!$W$2:$W$366,MONTH($B49),Bd!$C$2:$C$366,\"ANU\")+COUNTIFS(Bd!$W$2:$W$366,MONTH($B49),Bd!$D$2:$D$366,\"ANU\")+COUNTIFS(Bd!$W$2:$W$366,MONTH($B49),Bd!$E$2:$E$366,\"ANU\")+COUNTIFS(Bd!$W$2:$W$366,MONTH($B49),Bd!$F$2:$F$366,\"ANU\")","v":0},{"$f":"COUNTIFS(Bd!$W$2:$W$366,MONTH($B49),Bd!$I$2:$I$366,\"P\")+COUNTIFS(Bd!$W$2:$W$366,MONTH($B49),Bd!$J$2:$J$366,\"P\")+COUNTIFS(Bd!$W$2:$W$366,MONTH($B49),Bd!$K$2:$K$366,\"P\")+COUNTIFS(Bd!$W$2:$W$366,MONTH($B49),Bd!$L$2:$L$366,\"P\")+COUNTIFS(Bd!$W$2:$W$366,MONTH($B49),Bd!$M$2:$M$366,\"P\")","v":92},{"$f":"COUNTIFS(Bd!$W$2:$W$366,MONTH($B49),Bd!$B$2:$B$366,\"R\")+COUNTIFS(Bd!$W$2:$W$366,MONTH($B49),Bd!$C$2:$C$366,\"R\")+COUNTIFS(Bd!$W$2:$W$366,MONTH($B49),Bd!$D$2:$D$366,\"R\")+COUNTIFS(Bd!$W$2:$W$366,MONTH($B49),Bd!$E$2:$E$366,\"R\")+COUNTIFS(Bd!$W$2:$W$366,MONTH($B49),Bd!$F$2:$F$366,\"R\")","v":0},{"$f":"COUNTIFS(Bd!$W$2:$W$366,MONTH($B49),Bd!$B$2:$B$366,\"RE\")+COUNTIFS(Bd!$W$2:$W$366,MONTH($B49),Bd!$C$2:$C$366,\"RE\")+COUNTIFS(Bd!$W$2:$W$366,MONTH($B49),Bd!$D$2:$D$366,\"RE\")+COUNTIFS(Bd!$W$2:$W$366,MONTH($B49),Bd!$E$2:$E$366,\"RE\")+COUNTIFS(Bd!$W$2:$W$366,MONTH($B49),Bd!$F$2:$F$366,\"RE\")","v":0},{"$f":"COUNTIFS(Bd!$W$2:$W$366,MONTH($B49),Bd!$B$2:$B$366,\"NR\")+COUNTIFS(Bd!$W$2:$W$366,MONTH($B49),Bd!$C$2:$C$366,\"NR\")+COUNTIFS(Bd!$W$2:$W$366,MONTH($B49),Bd!$D$2:$D$366,\"NR\")+COUNTIFS(Bd!$W$2:$W$366,MONTH($B49),Bd!$E$2:$E$366,\"NR\")+COUNTIFS(Bd!$W$2:$W$366,MONTH($B49),Bd!$F$2:$F$366,\"NR\")","v":0},0]
[null,"2021-07-01",{"$f":"COUNTIFS(Bd!$W$2:$W$366,MONTH($B50),Bd!$B$2:$B$366,\"ANU\")+COUNTIFS(Bd!$W$2:$W$366,MONTH($B50),Bd!$C$2:$C$366,\"ANU\")+COUNTIFS(Bd!$W$2:$W$366,MONTH($B50),Bd!$D$2:$D$366,\"ANU\")+COUNTIFS(Bd!$W$2:$W$366,MONTH($B50),Bd!$E$2:$E$366,\"ANU\")+COUNTIFS(Bd!$W$2:$W$366,MONTH($B50),Bd!$F$2:$F$366,\"ANU\")","v":0},{"$f":"COUNTIFS(Bd!$W$2:$W$366,MONTH($B50),Bd!$I$2:$I$366,\"P\")+COUNTIFS(Bd!$W$2:$W$366,MONTH($B50),Bd!$J$2:$J$366,\"P\")+COUNTIFS(Bd!$W$2:$W$366,MONTH($B50),Bd!$K$2:$K$366,\"P\")+COUNTIFS(Bd!$W$2:$W$366,MONTH($B50),Bd!$L$2:$L$366,\"P\")+COUNTIFS(Bd!$W$2:$W$366,MONTH($B50),Bd!$M$2:$M$366,\"P\")","v":95},{"$f":"COUNTIFS(Bd!$W$2:$W$366,MONTH($B50),Bd!$B$2:$B$366,\"R\")+COUNTIFS(Bd!$W$2:$W$366,MONTH($B50),Bd!$C$2:$C$366,\"R\")+COUNTIFS(Bd!$W$2:$W$366,MONTH($B50),Bd!$D$2:$D$366,\"R\")+COUNTIFS(Bd!$W$2:$W$366,MONTH($B50),Bd!$E$2:$E$366,\"R\")+COUNTIFS(Bd!$W$2:$W$366,MONTH($B50),Bd!$F$2:$F$366,\"R\")","v":0},{"$f":"COUNTIFS(Bd!$W$2:$W$366,MONTH($B50),Bd!$B$2:$B$366,\"RE\")+COUNTIFS(Bd!$W$2:$W$366,MONTH($B50),Bd!$C$2:$C$366,\"RE\")+COUNTIFS(Bd!$W$2:$W$366,MONTH($B50),Bd!$D$2:$D$366,\"RE\")+COUNTIFS(Bd!$W$2:$W$366,MONTH($B50),Bd!$E$2:$E$366,\"RE\")+COUNTIFS(Bd!$W$2:$W$366,MONTH($B50),Bd!$F$2:$F$366,\"RE\")","v":0},{"$f":"COUNTIFS(Bd!$W$2:$W$366,MONTH($B50),Bd!$B$2:$B$366,\"NR\")+COUNTIFS(Bd!$W$2:$W$366,MONTH($B50),Bd!$C$2:$C$366,\"NR\")+COUNTIFS(Bd!$W$2:$W$366,MONTH($B50),Bd!$D$2:$D$366,\"NR\")+COUNTIFS(Bd!$W$2:$W$366,MONTH($B50),Bd!$E$2:$E$366,\"NR\")+COUNTIFS(Bd!$W$2:$W$366,MONTH($B50),Bd!$F$2:$F$366,\"NR\")","v":0},0]
[null,"2021-08-01",{"$f":"COUNTIFS(Bd!$W$2:$W$366,MONTH($B51),Bd!$B$2:$B$366,\"ANU\")+COUNTIFS(Bd!$W$2:$W$366,MONTH($B51),Bd!$C$2:$C$366,\"ANU\")+COUNTIFS(Bd!$W$2:$W$366,MONTH($B51),Bd!$D$2:$D$366,\"ANU\")+COUNTIFS(Bd!$W$2:$W$366,MONTH($B51),Bd!$E$2:$E$366,\"ANU\")+COUNTIFS(Bd!$W$2:$W$366,MONTH($B51),Bd!$F$2:$F$366,\"ANU\")","v":0},{"$f":"COUNTIFS(Bd!$W$2:$W$366,MONTH($B51),Bd!$I$2:$I$366,\"P\")+COUNTIFS(Bd!$W$2:$W$366,MONTH($B51),Bd!$J$2:$J$366,\"P\")+COUNTIFS(Bd!$W$2:$W$366,MONTH($B51),Bd!$K$2:$K$366,\"P\")+COUNTIFS(Bd!$W$2:$W$366,MONTH($B51),Bd!$L$2:$L$366,\"P\")+COUNTIFS(Bd!$W$2:$W$366,MONTH($B51),Bd!$M$2:$M$366,\"P\")","v":95},{"$f":"COUNTIFS(Bd!$W$2:$W$366,MONTH($B51),Bd!$B$2:$B$366,\"R\")+COUNTIFS(Bd!$W$2:$W$366,MONTH($B51),Bd!$C$2:$C$366,\"R\")+COUNTIFS(Bd!$W$2:$W$366,MONTH($B51),Bd!$D$2:$D$366,\"R\")+COUNTIFS(Bd!$W$2:$W$366,MONTH($B51),Bd!$E$2:$E$366,\"R\")+COUNTIFS(Bd!$W$2:$W$366,MONTH($B51),Bd!$F$2:$F$366,\"R\")","v":0},{"$f":"COUNTIFS(Bd!$W$2:$W$366,MONTH($B51),Bd!$B$2:$B$366,\"RE\")+COUNTIFS(Bd!$W$2:$W$366,MONTH($B51),Bd!$C$2:$C$366,\"RE\")+COUNTIFS(Bd!$W$2:$W$366,MONTH($B51),Bd!$D$2:$D$366,\"RE\")+COUNTIFS(Bd!$W$2:$W$366,MONTH($B51),Bd!$E$2:$E$366,\"RE\")+COUNTIFS(Bd!$W$2:$W$366,MONTH($B51),Bd!$F$2:$F$366,\"RE\")","v":0},{"$f":"COUNTIFS(Bd!$W$2:$W$366,MONTH($B51),Bd!$B$2:$B$366,\"NR\")+COUNTIFS(Bd!$W$2:$W$366,MONTH($B51),Bd!$C$2:$C$366,\"NR\")+COUNTIFS(Bd!$W$2:$W$366,MONTH($B51),Bd!$D$2:$D$366,\"NR\")+COUNTIFS(Bd!$W$2:$W$366,MONTH($B51),Bd!$E$2:$E$366,\"NR\")+COUNTIFS(Bd!$W$2:$W$366,MONTH($B51),Bd!$F$2:$F$366,\"NR\")","v":0},0]
[null,"2021-09-01",{"$f":"COUNTIFS(Bd!$W$2:$W$366,MONTH($B52),Bd!$B$2:$B$366,\"ANU\")+COUNTIFS(Bd!$W$2:$W$366,MONTH($B52),Bd!$C$2:$C$366,\"ANU\")+COUNTIFS(Bd!$W$2:$W$366,MONTH($B52),Bd!$D$2:$D$366,\"ANU\")+COUNTIFS(Bd!$W$2:$W$366,MONTH($B52),Bd!$E$2:$E$366,\"ANU\")+COUNTIFS(Bd!$W$2:$W$366,MONTH($B52),Bd!$F$2:$F$366,\"ANU\")","v":0},{"$f":"COUNTIFS(Bd!$W$2:$W$366,MONTH($B52),Bd!$I$2:$I$366,\"P\")+COUNTIFS(Bd!$W$2:$W$366,MONTH($B52),Bd!$J$2:$J$366,\"P\")+COUNTIFS(Bd!$W$2:$W$366,MONTH($B52),Bd!$K$2:$K$366,\"P\")+COUNTIFS(Bd!$W$2:$W$366,MONTH($B52),Bd!$L$2:$L$366,\"P\")+COUNTIFS(Bd!$W$2:$W$366,MONTH($B52),Bd!$M$2:$M$366,\"P\")","v":92},{"$f":"COUNTIFS(Bd!$W$2:$W$366,MONTH($B52),Bd!$B$2:$B$366,\"R\")+COUNTIFS(Bd!$W$2:$W$366,MONTH($B52),Bd!$C$2:$C$366,\"R\")+COUNTIFS(Bd!$W$2:$W$366,MONTH($B52),Bd!$D$2:$D$366,\"R\")+COUNTIFS(Bd!$W$2:$W$366,MONTH($B52),Bd!$E$2:$E$366,\"R\")+COUNTIFS(Bd!$W$2:$W$366,MONTH($B52),Bd!$F$2:$F$366,\"R\")","v":0},{"$f":"COUNTIFS(Bd!$W$2:$W$366,MONTH($B52),Bd!$B$2:$B$366,\"RE\")+COUNTIFS(Bd!$W$2:$W$366,MONTH($B52),Bd!$C$2:$C$366,\"RE\")+COUNTIFS(Bd!$W$2:$W$366,MONTH($B52),Bd!$D$2:$D$366,\"RE\")+COUNTIFS(Bd!$W$2:$W$366,MONTH($B52),Bd!$E$2:$E$366,\"RE\")+COUNTIFS(Bd!$W$2:$W$366,MONTH($B52),Bd!$F$2:$F$366,\"RE\")","v":0},{"$f":"COUNTIFS(Bd!$W$2:$W$366,MONTH($B52),Bd!$B$2:$B$366,\"NR\")+COUNTIFS(Bd!$W$2:$W$366,MONTH($B52),Bd!$C$2:$C$366,\"NR\")+COUNTIFS(Bd!$W$2:$W$366,MONTH($B52),Bd!$D$2:$D$366,\"NR\")+COUNTIFS(Bd!$W$2:$W$366,MONTH($B52),Bd!$E$2:$E$366,\"NR\")+COUNTIFS(Bd!$W$2:$W$366,MONTH($B52),Bd!$F$2:$F$366,\"NR\")","v":0},0]
[null,"2021-10-01",{"$f":"COUNTIFS(Bd!$W$2:$W$366,MONTH($B53),Bd!$B$2:$B$366,\"ANU\")+COUNTIFS(Bd!$W$2:$W$366,MONTH($B53),Bd!$C$2:$C$366,\"ANU\")+COUNTIFS(Bd!$W$2:$W$366,MONTH($B53),Bd!$D$2:$D$366,\"ANU\")+COUNTIFS(Bd!$W$2:$W$366,MONTH($B53),Bd!$E$2:$E$366,\"ANU\")+COUNTIFS(Bd!$W$2:$W$366,MONTH($B53),Bd!$F$2:$F$366,\"ANU\")","v":0},{"$f":"COUNTIFS(Bd!$W$2:$W$366,MONTH($B53),Bd!$I$2:$I$366,\"P\")+COUNTIFS(Bd!$W$2:$W$366,MONTH($B53),Bd!$J$2:$J$366,\"P\")+COUNTIFS(Bd!$W$2:$W$366,MONTH($B53),Bd!$K$2:$K$366,\"P\")+COUNTIFS(Bd!$W$2:$W$366,MONTH($B53),Bd!$L$2:$L$366,\"P\")+COUNTIFS(Bd!$W$2:$W$366,MONTH($B53),Bd!$M$2:$M$366,\"P\")","v":95},{"$f":"COUNTIFS(Bd!$W$2:$W$366,MONTH($B53),Bd!$B$2:$B$366,\"R\")+COUNTIFS(Bd!$W$2:$W$366,MONTH($B53),Bd!$C$2:$C$366,\"R\")+COUNTIFS(Bd!$W$2:$W$366,MONTH($B53),Bd!$D$2:$D$366,\"R\")+COUNTIFS(Bd!$W$2:$W$366,MONTH($B53),Bd!$E$2:$E$366,\"R\")+COUNTIFS(Bd!$W$2:$W$366,MONTH($B53),Bd!$F$2:$F$366,\"R\")","v":0},{"$f":"COUNTIFS(Bd!$W$2:$W$366,MONTH($B53),Bd!$B$2:$B$366,\"RE\")+COUNTIFS(Bd!$W$2:$W$366,MONTH($B53),Bd!$C$2:$C$366,\"RE\")+COUNTIFS(Bd!$W$2:$W$366,MONTH($B53),Bd!$D$2:$D$366,\"RE\")+COUNTIFS(Bd!$W$2:$W$366,MONTH($B53),Bd!$E$2:$E$366,\"RE\")+COUNTIFS(Bd!$W$2:$W$366,MONTH($B53),Bd!$F$2:$F$366,\"RE\")","v":0},{"$f":"COUNTIFS(Bd!$W$2:$W$366,MONTH($B53),Bd!$B$2:$B$366,\"NR\")+COUNTIFS(Bd!$W$2:$W$366,MONTH($B53),Bd!$C$2:$C$366,\"NR\")+COUNTIFS(Bd!$W$2:$W$366,MONTH($B53),Bd!$D$2:$D$366,\"NR\")+COUNTIFS(Bd!$W$2:$W$366,MONTH($B53),Bd!$E$2:$E$366,\"NR\")+COUNTIFS(Bd!$W$2:$W$366,MONTH($B53),Bd!$F$2:$F$366,\"NR\")","v":0},0]
[null,"2021-11-01",{"$f":"COUNTIFS(Bd!$W$2:$W$366,MONTH($B54),Bd!$B$2:$B$366,\"ANU\")+COUNTIFS(Bd!$W$2:$W$366,MONTH($B54),Bd!$C$2:$C$366,\"ANU\")+COUNTIFS(Bd!$W$2:$W$366,MONTH($B54),Bd!$D$2:$D$366,\"ANU\")+COUNTIFS(Bd!$W$2:$W$366,MONTH($B54),Bd!$E$2:$E$366,\"ANU\")+COUNTIFS(Bd!$W$2:$W$366,MONTH($B54),Bd!$F$2:$F$366,\"ANU\")","v":0},{"$f":"COUNTIFS(Bd!$W$2:$W$366,MONTH($B54),Bd!$I$2:$I$366,\"P\")+COUNTIFS(Bd!$W$2:$W$366,MONTH($B54),Bd!$J$2:$J$366,\"P\")+COUNTIFS(Bd!$W$2:$W$366,MONTH($B54),Bd!$K$2:$K$366,\"P\")+COUNTIFS(Bd!$W$2:$W$366,MONTH($B54),Bd!$L$2:$L$366,\"P\")+COUNTIFS(Bd!$W$2:$W$366,MONTH($B54),Bd!$M$2:$M$366,\"P\")","v":92},{"$f":"COUNTIFS(Bd!$W$2:$W$366,MONTH($B54),Bd!$B$2:$B$366,\"R\")+COUNTIFS(Bd!$W$2:$W$366,MONTH($B54),Bd!$C$2:$C$366,\"R\")+COUNTIFS(Bd!$W$2:$W$366,MONTH($B54),Bd!$D$2:$D$366,\"R\")+COUNTIFS(Bd!$W$2:$W$366,MONTH($B54),Bd!$E$2:$E$366,\"R\")+COUNTIFS(Bd!$W$2:$W$366,MONTH($B54),Bd!$F$2:$F$366,\"R\")","v":0},{"$f":"COUNTIFS(Bd!$W$2:$W$366,MONTH($B54),Bd!$B$2:$B$366,\"RE\")+COUNTIFS(Bd!$W$2:$W$366,MONTH($B54),Bd!$C$2:$C$366,\"RE\")+COUNTIFS(Bd!$W$2:$W$366,MONTH($B54),Bd!$D$2:$D$366,\"RE\")+COUNTIFS(Bd!$W$2:$W$366,MONTH($B54),Bd!$E$2:$E$366,\"RE\")+COUNTIFS(Bd!$W$2:$W$366,MONTH($B54),Bd!$F$2:$F$366,\"RE\")","v":0},{"$f":"COUNTIFS(Bd!$W$2:$W$366,MONTH($B54),Bd!$B$2:$B$366,\"NR\")+COUNTIFS(Bd!$W$2:$W$366,MONTH($B54),Bd!$C$2:$C$366,\"NR\")+COUNTIFS(Bd!$W$2:$W$366,MONTH($B54),Bd!$D$2:$D$366,\"NR\")+COUNTIFS(Bd!$W$2:$W$366,MONTH($B54),Bd!$E$2:$E$366,\"NR\")+COUNTIFS(Bd!$W$2:$W$366,MONTH($B54),Bd!$F$2:$F$366,\"NR\")","v":0},0]
[null,"2021-12-01",{"$f":"COUNTIFS(Bd!$W$2:$W$366,MONTH($B55),Bd!$B$2:$B$366,\"ANU\")+COUNTIFS(Bd!$W$2:$W$366,MONTH($B55),Bd!$C$2:$C$366,\"ANU\")+COUNTIFS(Bd!$W$2:$W$366,MONTH($B55),Bd!$D$2:$D$366,\"ANU\")+COUNTIFS(Bd!$W$2:$W$366,MONTH($B55),Bd!$E$2:$E$366,\"ANU\")+COUNTIFS(Bd!$W$2:$W$366,MONTH($B55),Bd!$F$2:$F$366,\"ANU\")","v":0},{"$f":"COUNTIFS(Bd!$W$2:$W$366,MONTH($B55),Bd!$I$2:$I$366,\"P\")+COUNTIFS(Bd!$W$2:$W$366,MONTH($B55),Bd!$J$2:$J$366,\"P\")+COUNTIFS(Bd!$W$2:$W$366,MONTH($B55),Bd!$K$2:$K$366,\"P\")+COUNTIFS(Bd!$W$2:$W$366,MONTH($B55),Bd!$L$2:$L$366,\"P\")+COUNTIFS(Bd!$W$2:$W$366,MONTH($B55),Bd!$M$2:$M$366,\"P\")","v":97},{"$f":"COUNTIFS(Bd!$W$2:$W$366,MONTH($B55),Bd!$B$2:$B$366,\"R\")+COUNTIFS(Bd!$W$2:$W$366,MONTH($B55),Bd!$C$2:$C$366,\"R\")+COUNTIFS(Bd!$W$2:$W$366,MONTH($B55),Bd!$D$2:$D$366,\"R\")+COUNTIFS(Bd!$W$2:$W$366,MONTH($B55),Bd!$E$2:$E$366,\"R\")+COUNTIFS(Bd!$W$2:$W$366,MONTH($B55),Bd!$F$2:$F$366,\"R\")","v":0},{"$f":"COUNTIFS(Bd!$W$2:$W$366,MONTH($B55),Bd!$B$2:$B$366,\"RE\")+COUNTIFS(Bd!$W$2:$W$366,MONTH($B55),Bd!$C$2:$C$366,\"RE\")+COUNTIFS(Bd!$W$2:$W$366,MONTH($B55),Bd!$D$2:$D$366,\"RE\")+COUNTIFS(Bd!$W$2:$W$366,MONTH($B55),Bd!$E$2:$E$366,\"RE\")+COUNTIFS(Bd!$W$2:$W$366,MONTH($B55),Bd!$F$2:$F$366,\"RE\")","v":0},{"$f":"COUNTIFS(Bd!$W$2:$W$366,MONTH($B55),Bd!$B$2:$B$366,\"NR\")+COUNTIFS(Bd!$W$2:$W$366,MONTH($B55),Bd!$C$2:$C$366,\"NR\")+COUNTIFS(Bd!$W$2:$W$366,MONTH($B55),Bd!$D$2:$D$366,\"NR\")+COUNTIFS(Bd!$W$2:$W$366,MONTH($B55),Bd!$E$2:$E$366,\"NR\")+COUNTIFS(Bd!$W$2:$W$366,MONTH($B55),Bd!$F$2:$F$366,\"NR\")","v":0},0]